[Event "Titled Tuesday Blitz February 07 Late 2023"]
[White "Rian, Kapriaga"]
[Black "Balog, Imre"]
[WhiteFideId "7103263"]
[BlackFideId "728446"]
[WhiteElo "2089"]
[BlackElo "2615"]
[Result "1-0"]
[Round "05"]
[TimeControl "180+2"]
[Date "2023.02.07"]
[WhiteClock "0:01:12"]
[BlackClock "0:00:03"]

1. d4 {[%clk 0:02:55]}  Nf6 {[%clk 0:02:59]} 2. Nf3 {[%clk 0:02:54]}  g6 {[%clk 0:02:54]} 3. Bg5 {[%clk 0:02:48]}  Bg7 {[%clk 0:02:44]} 4. Nbd2 {[%clk 0:02:48]}  O-O {[%clk 0:02:36]} 5. e4 {[%clk 0:02:47]}  d6 {[%clk 0:02:35]} 6. c3 {[%clk 0:02:47]}  h6 {[%clk 0:02:24]} 7. Bh4 {[%clk 0:02:46]}  Nc6 {[%clk 0:02:13]} 8. Be2 {[%clk 0:02:45]}  e5 {[%clk 0:02:10]} 9. dxe5 {[%clk 0:02:44]}  dxe5 {[%clk 0:02:06]} 10. O-O {[%clk 0:02:44]}  g5 {[%clk 0:01:59]} 11. Bg3 {[%clk 0:02:43]}  Nh5 {[%clk 0:01:51]} 12. Qc2 {[%clk 0:02:38]}  Nf4 {[%clk 0:01:18]} 13. Nc4 {[%clk 0:02:36]}  Qe7 {[%clk 0:01:12]} 14. Ne3 {[%clk 0:02:33]}  Be6 {[%clk 0:01:00]} 15. Rfd1 {[%clk 0:02:18]}  Rad8 {[%clk 0:00:59]} 16. Bc4 {[%clk 0:02:17]}  Bxc4 {[%clk 0:00:57]} 17. Nxc4 {[%clk 0:02:16]}  Rfe8 {[%clk 0:00:52]} 18. Ne3 {[%clk 0:02:16]}  Rxd1+ {[%clk 0:00:50]} 19. Rxd1 {[%clk 0:02:15]}  Rd8 {[%clk 0:00:48]} 20. Nf5 {[%clk 0:01:56]}  Rxd1+ {[%clk 0:00:46]} 21. Qxd1 {[%clk 0:01:55]}  Qe6 {[%clk 0:00:33]} 22. b3 {[%clk 0:01:49]}  Bf8 {[%clk 0:00:26]} 23. Bxf4 {[%clk 0:01:47]}  exf4 {[%clk 0:00:25]} 24. Qd5 {[%clk 0:01:42]}  Qxd5 {[%clk 0:00:10]} 25. exd5 {[%clk 0:01:41]}  Ne7 {[%clk 0:00:10]} 26. Nxe7+ {[%clk 0:01:36]}  Bxe7 {[%clk 0:00:11]} 27. Kf1 {[%clk 0:01:24]}  Bf6 {[%clk 0:00:11]} 28. c4 {[%clk 0:01:22]}  Kf8 {[%clk 0:00:11]} 29. Ke2 {[%clk 0:01:21]}  Ke7 {[%clk 0:00:11]} 30. Kd3 {[%clk 0:01:21]}  a5 {[%clk 0:00:08]} 31. Nd4 {[%clk 0:01:21]}  Bxd4 {[%clk 0:00:05]} 32. Kxd4 {[%clk 0:01:20]}  Kd6 {[%clk 0:00:04]} 33. a3 {[%clk 0:01:19]}  f6 {[%clk 0:00:03]} 34. f3 {[%clk 0:01:19]}  c5+ {[%clk 0:00:03]} 35. Ke4 {[%clk 0:01:12]} 1-0


[Site "https://www.chess.com"]

[Event "Titled Tuesday Blitz February 07 Late 2023"]
[White "Marcolino, Daniel Mattos"]
[Black "Marczuk, Dominik"]
[WhiteFideId "2106841"]
[BlackFideId "1111264"]
[WhiteElo "2006"]
[BlackElo "2253"]
[Result "0-1"]
[Round "05"]
[TimeControl "180+2"]
[Date "2023.02.07"]
[WhiteClock "0:00:30"]
[BlackClock "0:02:36"]

1. d4 {[%clk 0:03:00]}  Nf6 {[%clk 0:02:57]} 2. Nf3 {[%clk 0:03:01]}  g6 {[%clk 0:02:57]} 3. g3 {[%clk 0:03:01]}  Bg7 {[%clk 0:02:58]} 4. Bg2 {[%clk 0:03:02]}  O-O {[%clk 0:02:58]} 5. O-O {[%clk 0:03:02]}  d6 {[%clk 0:02:59]} 6. b3 {[%clk 0:03:02]}  Nbd7 {[%clk 0:02:59]} 7. Bb2 {[%clk 0:03:02]}  e5 {[%clk 0:03:00]} 8. dxe5 {[%clk 0:03:02]}  Ng4 {[%clk 0:03:00]} 9. Qc1 {[%clk 0:03:02]}  Ngxe5 {[%clk 0:03:00]} 10. Nxe5 {[%clk 0:03:02]}  Nxe5 {[%clk 0:03:01]} 11. c4 {[%clk 0:03:01]}  Qe7 {[%clk 0:02:58]} 12. Nc3 {[%clk 0:02:55]}  c6 {[%clk 0:02:57]} 13. Rd1 {[%clk 0:02:53]}  Rd8 {[%clk 0:02:53]} 14. Qc2 {[%clk 0:02:38]}  Bf5 {[%clk 0:02:53]} 15. e4 {[%clk 0:02:38]}  Bg4 {[%clk 0:02:53]} 16. Ne2 {[%clk 0:02:05]}  Nf3+ {[%clk 0:02:44]} 17. Kh1 {[%clk 0:02:06]}  Bxb2 {[%clk 0:02:44]} 18. Qxb2 {[%clk 0:02:06]}  Qxe4 {[%clk 0:02:45]} 19. Ng1 {[%clk 0:01:18]}  Qe5 {[%clk 0:02:35]} 20. Qxe5 {[%clk 0:00:34]}  Nxe5 {[%clk 0:02:36]} 21. f4 {[%clk 0:00:30]} 0-1


[Site "https://www.chess.com"]

[Event "Titled Tuesday Blitz February 07 Late 2023"]
[White "Jesusesmifuerza"]
[Black "Slavin, Alexey"]
[BlackFideId "24104388"]
[WhiteElo "2043"]
[BlackElo "2364"]
[Result "1-0"]
[Round "05"]
[TimeControl "180+2"]
[Date "2023.02.07"]
[WhiteClock "0:00:26"]
[BlackClock "0:00:32"]

1. d4 {[%clk 0:03:00]}  Nc6 {[%clk 0:02:59]} 2. Nc3 {[%clk 0:03:00]}  e6 {[%clk 0:02:58]} 3. Bf4 {[%clk 0:03:00]}  d6 {[%clk 0:02:57]} 4. e3 {[%clk 0:02:58]}  Nf6 {[%clk 0:02:56]} 5. Nf3 {[%clk 0:02:56]}  Be7 {[%clk 0:02:56]} 6. h3 {[%clk 0:02:56]}  O-O {[%clk 0:02:56]} 7. Bd3 {[%clk 0:02:54]}  Re8 {[%clk 0:02:55]} 8. O-O {[%clk 0:02:53]}  h6 {[%clk 0:02:54]} 9. Bh2 {[%clk 0:02:50]}  Bf8 {[%clk 0:02:54]} 10. Ne4 {[%clk 0:02:46]}  e5 {[%clk 0:02:49]} 11. dxe5 {[%clk 0:02:39]}  dxe5 {[%clk 0:02:47]} 12. Nxf6+ {[%clk 0:02:36]}  Qxf6 {[%clk 0:02:44]} 13. Bb5 {[%clk 0:02:27]}  Bd6 {[%clk 0:02:37]} 14. Bxc6 {[%clk 0:02:25]}  bxc6 {[%clk 0:02:37]} 15. e4 {[%clk 0:02:25]}  Ba6 {[%clk 0:02:30]} 16. Re1 {[%clk 0:02:24]}  Rad8 {[%clk 0:02:30]} 17. Qc1 {[%clk 0:02:22]}  c5 {[%clk 0:02:28]} 18. c4 {[%clk 0:02:17]}  Bb7 {[%clk 0:02:27]} 19. Qe3 {[%clk 0:02:15]}  g5 {[%clk 0:02:08]} 20. Rad1 {[%clk 0:02:01]}  Qg6 {[%clk 0:02:07]} 21. Nd2 {[%clk 0:01:55]}  h5 {[%clk 0:02:03]} 22. f3 {[%clk 0:01:50]}  g4 {[%clk 0:02:00]} 23. fxg4 {[%clk 0:01:46]}  hxg4 {[%clk 0:01:59]} 24. hxg4 {[%clk 0:01:46]}  Qxg4 {[%clk 0:01:58]} 25. Qf3 {[%clk 0:01:46]}  Qg6 {[%clk 0:01:45]} 26. Rf1 {[%clk 0:01:42]}  Bc8 {[%clk 0:01:37]} 27. Qf6 {[%clk 0:01:35]}  Qxf6 {[%clk 0:01:29]} 28. Rxf6 {[%clk 0:01:36]}  Kg7 {[%clk 0:01:30]} 29. Rdf1 {[%clk 0:01:32]}  Re6 {[%clk 0:01:29]} 30. Rxf7+ {[%clk 0:01:28]}  Kg6 {[%clk 0:01:27]} 31. R7f2 {[%clk 0:01:04]}  Bb7 {[%clk 0:01:22]} 32. Re1 {[%clk 0:00:55]}  Rh8 {[%clk 0:01:15]} 33. Bg3 {[%clk 0:00:49]}  Rh5 {[%clk 0:01:12]} 34. Nf3 {[%clk 0:00:45]}  Rf6 {[%clk 0:01:11]} 35. Nh4+ {[%clk 0:00:44]}  Kf7 {[%clk 0:01:06]} 36. Rxf6+ {[%clk 0:00:44]}  Kxf6 {[%clk 0:01:06]} 37. Nf5 {[%clk 0:00:42]}  Rg5 {[%clk 0:01:02]} 38. Bh4 {[%clk 0:00:41]}  Kg6 {[%clk 0:00:58]} 39. Bxg5 {[%clk 0:00:41]}  Kxg5 {[%clk 0:00:59]} 40. Kf2 {[%clk 0:00:38]}  Bf8 {[%clk 0:00:49]} 41. Kf3 {[%clk 0:00:35]}  Kf6 {[%clk 0:00:49]} 42. Rh1 {[%clk 0:00:35]}  Ba6 {[%clk 0:00:45]} 43. b3 {[%clk 0:00:33]}  Kg6 {[%clk 0:00:37]} 44. Rh8 {[%clk 0:00:28]}  Kf7 {[%clk 0:00:33]} 45. Rh7+ {[%clk 0:00:27]}  Kg6 {[%clk 0:00:32]} 46. Rxc7 {[%clk 0:00:26]} 1-0


[Site "https://www.chess.com"]

[Event "Titled Tuesday Blitz February 07 Late 2023"]
[White "Mohammadian, Mohammad"]
[Black "Antonio, Jorge Carlos"]
[WhiteFideId "12566055"]
[BlackFideId "113190"]
[WhiteElo "1398"]
[BlackElo "2277"]
[Result "0-1"]
[Round "05"]
[TimeControl "180+2"]
[Date "2023.02.07"]
[WhiteClock "0:00:40"]
[BlackClock "0:01:17"]

1. e4 {[%clk 0:03:00]}  c5 {[%clk 0:02:59]} 2. Nf3 {[%clk 0:02:59]}  e6 {[%clk 0:02:59]} 3. d4 {[%clk 0:02:59]}  cxd4 {[%clk 0:02:58]} 4. Nxd4 {[%clk 0:02:59]}  a6 {[%clk 0:02:56]} 5. Nc3 {[%clk 0:02:59]}  Nc6 {[%clk 0:02:56]} 6. Be3 {[%clk 0:02:58]}  Nf6 {[%clk 0:02:55]} 7. Be2 {[%clk 0:02:57]}  Bb4 {[%clk 0:02:53]} 8. f3 {[%clk 0:02:48]}  d5 {[%clk 0:02:51]} 9. exd5 {[%clk 0:02:46]}  exd5 {[%clk 0:02:50]} 10. O-O {[%clk 0:02:41]}  O-O {[%clk 0:02:45]} 11. Qd3 {[%clk 0:02:33]}  Re8 {[%clk 0:02:43]} 12. a3 {[%clk 0:02:28]}  Rxe3 {[%clk 0:02:38]} 13. Qxe3 {[%clk 0:02:23]}  Bc5 {[%clk 0:02:38]} 14. Kh1 {[%clk 0:02:11]}  Bxd4 {[%clk 0:02:36]} 15. Qd3 {[%clk 0:02:08]}  Bb6 {[%clk 0:02:28]} 16. Rad1 {[%clk 0:02:05]}  Be6 {[%clk 0:02:27]} 17. Qd2 {[%clk 0:01:51]}  Qc7 {[%clk 0:02:25]} 18. Qg5 {[%clk 0:01:50]}  h6 {[%clk 0:02:22]} 19. Qg3 {[%clk 0:01:48]}  Qxg3 {[%clk 0:02:21]} 20. hxg3 {[%clk 0:01:48]}  Nh5 {[%clk 0:02:18]} 21. Kh2 {[%clk 0:01:43]}  Bc7 {[%clk 0:02:17]} 22. f4 {[%clk 0:01:43]}  Nf6 {[%clk 0:02:08]} 23. Bd3 {[%clk 0:01:40]}  Ng4+ {[%clk 0:02:06]} 24. Kg1 {[%clk 0:01:32]}  Ne3 {[%clk 0:02:06]} 25. f5 {[%clk 0:01:30]}  Nxd1 {[%clk 0:02:04]} 26. fxe6 {[%clk 0:01:26]}  Nxc3 {[%clk 0:01:59]} 27. exf7+ {[%clk 0:01:25]}  Kf8 {[%clk 0:01:59]} 28. bxc3 {[%clk 0:01:24]}  Ne5 {[%clk 0:01:58]} 29. c4 {[%clk 0:01:20]}  Nxd3 {[%clk 0:01:56]} 30. cxd3 {[%clk 0:01:19]}  dxc4 {[%clk 0:01:56]} 31. dxc4 {[%clk 0:01:19]}  Rd8 {[%clk 0:01:54]} 32. Rf3 {[%clk 0:01:13]}  Rd7 {[%clk 0:01:53]} 33. Rb3 {[%clk 0:01:11]}  Bd6 {[%clk 0:01:45]} 34. a4 {[%clk 0:01:06]}  Kxf7 {[%clk 0:01:40]} 35. Kf1 {[%clk 0:01:05]}  Bc5 {[%clk 0:01:38]} 36. Ke2 {[%clk 0:01:03]}  b6 {[%clk 0:01:38]} 37. Kf3 {[%clk 0:01:02]}  a5 {[%clk 0:01:39]} 38. Kg4 {[%clk 0:01:02]}  Rd4+ {[%clk 0:01:38]} 39. Kh5 {[%clk 0:00:55]}  Rxc4 {[%clk 0:01:37]} 40. Rf3+ {[%clk 0:00:55]}  Kg8 {[%clk 0:01:34]} 41. Kg6 {[%clk 0:00:51]}  Rg4+ {[%clk 0:01:31]} 42. Kf5 {[%clk 0:00:50]}  Rxa4 {[%clk 0:01:30]} 43. Ke6 {[%clk 0:00:50]}  Rg4 {[%clk 0:01:26]} 44. Kd7 {[%clk 0:00:49]}  a4 {[%clk 0:01:24]} 45. Ke8 {[%clk 0:00:44]}  a3 {[%clk 0:01:23]} 46. Kd7 {[%clk 0:00:42]}  a2 {[%clk 0:01:17]} 47. Rf1 {[%clk 0:00:42]}  Rxg3 {[%clk 0:01:17]} 48. Ra1 {[%clk 0:00:41]}  Rxg2 {[%clk 0:01:17]} 49. Kc6 {[%clk 0:00:41]}  h5 {[%clk 0:01:17]} 50. Kb5 {[%clk 0:00:40]}  h4 {[%clk 0:01:17]} 0-1


[Site "https://www.chess.com"]

[Event "Titled Tuesday Blitz February 07 Late 2023"]
[White "Pinheiro, Iung Alicio de O."]
[Black "Barash, Anton"]
[WhiteFideId "2104350"]
[BlackFideId "30935229"]
[WhiteElo "2306"]
[BlackElo "2074"]
[Result "1-0"]
[Round "05"]
[TimeControl "180+2"]
[Date "2023.02.07"]
[WhiteClock "0:01:29"]
[BlackClock "0:02:10"]

1. e4 {[%clk 0:01:53]}  e6 {[%clk 0:02:56]} 2. d4 {[%clk 0:01:53]}  d5 {[%clk 0:02:55]} 3. e5 {[%clk 0:01:53]}  c5 {[%clk 0:02:53]} 4. c3 {[%clk 0:01:54]}  Qb6 {[%clk 0:02:52]} 5. Nf3 {[%clk 0:01:55]}  Nc6 {[%clk 0:02:52]} 6. Bd3 {[%clk 0:01:56]}  cxd4 {[%clk 0:02:52]} 7. O-O {[%clk 0:01:57]}  Bd7 {[%clk 0:02:49]} 8. Re1 {[%clk 0:01:58]}  Nge7 {[%clk 0:02:44]} 9. a3 {[%clk 0:01:59]}  Ng6 {[%clk 0:02:30]} 10. h4 {[%clk 0:01:58]}  Qc7 {[%clk 0:02:30]} 11. cxd4 {[%clk 0:01:52]}  f6 {[%clk 0:02:25]} 12. h5 {[%clk 0:01:49]}  fxe5 {[%clk 0:02:15]} 13. hxg6 {[%clk 0:01:34]}  e4 {[%clk 0:02:16]} 14. Ng5 {[%clk 0:01:29]}  exd3 {[%clk 0:02:10]} 15. Nf7 {[%clk 0:01:29]} 1-0


[Site "https://www.chess.com"]

[Event "Titled Tuesday Blitz February 07 Late 2023"]
[White "ritanovikova"]
[Black "Yedidia, Daniel"]
[BlackFideId "30905907"]
[WhiteElo "2226"]
[BlackElo "2041"]
[Result "0-1"]
[Round "05"]
[TimeControl "180+2"]
[Date "2023.02.07"]
[WhiteClock "0:00:03"]
[BlackClock "0:00:05"]

1. e4 {[%clk 0:03:00]}  e5 {[%clk 0:02:59]} 2. Nf3 {[%clk 0:03:00]}  Nc6 {[%clk 0:03:00]} 3. Bc4 {[%clk 0:02:59]}  Nf6 {[%clk 0:02:59]} 4. d3 {[%clk 0:02:52]}  Be7 {[%clk 0:02:58]} 5. O-O {[%clk 0:02:52]}  O-O {[%clk 0:02:58]} 6. h3 {[%clk 0:02:51]}  d6 {[%clk 0:02:57]} 7. c3 {[%clk 0:02:51]}  Na5 {[%clk 0:02:57]} 8. Bb5 {[%clk 0:02:51]}  a6 {[%clk 0:02:58]} 9. Ba4 {[%clk 0:02:51]}  b5 {[%clk 0:02:58]} 10. Bc2 {[%clk 0:02:51]}  c5 {[%clk 0:02:59]} 11. d4 {[%clk 0:02:51]}  cxd4 {[%clk 0:02:53]} 12. cxd4 {[%clk 0:02:51]}  Nc6 {[%clk 0:02:54]} 13. a3 {[%clk 0:02:44]}  Qc7 {[%clk 0:02:42]} 14. Nc3 {[%clk 0:02:44]}  Nd7 {[%clk 0:02:39]} 15. Bb3 {[%clk 0:02:36]}  Nb6 {[%clk 0:02:28]} 16. Nd5 {[%clk 0:02:31]}  Nxd5 {[%clk 0:02:28]} 17. Bxd5 {[%clk 0:02:29]}  Bb7 {[%clk 0:02:26]} 18. Bg5 {[%clk 0:02:18]}  Nxd4 {[%clk 0:01:58]} 19. Nxd4 {[%clk 0:01:33]}  Bxg5 {[%clk 0:01:48]} 20. Nf5 {[%clk 0:01:32]}  Bxd5 {[%clk 0:01:45]} 21. Qxd5 {[%clk 0:01:28]}  Rfd8 {[%clk 0:01:42]} 22. h4 {[%clk 0:01:23]}  Be7 {[%clk 0:01:38]} 23. Rac1 {[%clk 0:01:18]}  Qd7 {[%clk 0:01:32]} 24. Rc6 {[%clk 0:01:13]}  Rac8 {[%clk 0:01:22]} 25. Rxa6 {[%clk 0:01:03]}  Bf8 {[%clk 0:01:16]} 26. Rd1 {[%clk 0:01:01]}  Rc2 {[%clk 0:01:06]} 27. b3 {[%clk 0:00:45]}  Qc8 {[%clk 0:00:34]} 28. Nxd6 {[%clk 0:00:39]}  Qxa6 {[%clk 0:00:29]} 29. Qxf7+ {[%clk 0:00:37]}  Kh8 {[%clk 0:00:27]} 30. Rd3 {[%clk 0:00:25]}  Bxd6 {[%clk 0:00:15]} 31. Rg3 {[%clk 0:00:21]}  Rg8 {[%clk 0:00:14]} 32. h5 {[%clk 0:00:20]}  Bc5 {[%clk 0:00:13]} 33. Rf3 {[%clk 0:00:16]}  Rc1+ {[%clk 0:00:12]} 34. Kh2 {[%clk 0:00:15]}  Qh6 {[%clk 0:00:12]} 35. g4 {[%clk 0:00:14]}  Rc2 {[%clk 0:00:11]} 36. Kg2 {[%clk 0:00:14]}  Bxa3 {[%clk 0:00:09]} 37. Qf5 {[%clk 0:00:12]}  Rcc8 {[%clk 0:00:09]} 38. Rh3 {[%clk 0:00:12]}  Be7 {[%clk 0:00:08]} 39. Rg3 {[%clk 0:00:11]}  Qg5 {[%clk 0:00:09]} 40. Qe6 {[%clk 0:00:10]}  Rcf8 {[%clk 0:00:08]} 41. f3 {[%clk 0:00:10]}  Qd2+ {[%clk 0:00:06]} 42. Kh3 {[%clk 0:00:10]}  Bf6 {[%clk 0:00:06]} 43. g5 {[%clk 0:00:09]}  Bxg5 {[%clk 0:00:06]} 44. Qxe5 {[%clk 0:00:09]}  Bf4 {[%clk 0:00:06]} 45. Qd5 {[%clk 0:00:06]}  Bxg3 {[%clk 0:00:06]} 46. Qxd2 {[%clk 0:00:06]}  Bf4 {[%clk 0:00:07]} 47. Qd3 {[%clk 0:00:06]}  Be5 {[%clk 0:00:07]} 48. Qxb5 {[%clk 0:00:06]}  Rxf3+ {[%clk 0:00:07]} 49. Kg4 {[%clk 0:00:06]}  Rf4+ {[%clk 0:00:07]} 50. Kh3 {[%clk 0:00:06]}  Rxe4 {[%clk 0:00:05]} 51. Qd5 {[%clk 0:00:06]}  Re3+ {[%clk 0:00:05]} 52. Kg2 {[%clk 0:00:06]}  Bf6 {[%clk 0:00:05]} 53. h6 {[%clk 0:00:05]}  gxh6+ {[%clk 0:00:04]} 54. Kf2 {[%clk 0:00:06]}  Bg5 {[%clk 0:00:04]} 55. Qd4+ {[%clk 0:00:05]}  Rg7 {[%clk 0:00:05]} 56. b4 {[%clk 0:00:04]}  Re8 {[%clk 0:00:05]} 57. b5 {[%clk 0:00:03]}  Be3+ {[%clk 0:00:05]} 0-1


[Site "https://www.chess.com"]

[Event "Titled Tuesday Blitz February 07 Late 2023"]
[White "De Arruda, Leandro Formes"]
[Black "Michalski, Olaf"]
[WhiteFideId "22722009"]
[BlackFideId "1106740"]
[WhiteElo "1980"]
[BlackElo "2273"]
[Result "1-0"]
[Round "05"]
[TimeControl "180+2"]
[Date "2023.02.07"]
[WhiteClock "0:01:05"]
[BlackClock "0:00:01"]

1. d4 {[%clk 0:03:00]}  d6 {[%clk 0:02:58]} 2. Nf3 {[%clk 0:03:00]}  Bg4 {[%clk 0:02:55]} 3. Qd3 {[%clk 0:02:58]}  Nd7 {[%clk 0:02:50]} 4. Nc3 {[%clk 0:02:55]}  Ngf6 {[%clk 0:02:46]} 5. Bg5 {[%clk 0:02:53]}  h6 {[%clk 0:02:35]} 6. Bh4 {[%clk 0:02:52]}  e6 {[%clk 0:02:23]} 7. e4 {[%clk 0:02:48]}  Be7 {[%clk 0:02:21]} 8. Be2 {[%clk 0:02:46]}  O-O {[%clk 0:02:11]} 9. O-O {[%clk 0:02:46]}  d5 {[%clk 0:02:04]} 10. e5 {[%clk 0:02:43]}  Bf5 {[%clk 0:01:56]} 11. Qb5 {[%clk 0:02:34]}  Ne4 {[%clk 0:01:47]} 12. Bxe7 {[%clk 0:02:28]}  Qxe7 {[%clk 0:01:24]} 13. Qxb7 {[%clk 0:02:23]}  Rfb8 {[%clk 0:00:52]} 14. Qxc7 {[%clk 0:02:20]}  Rxb2 {[%clk 0:00:51]} 15. Na4 {[%clk 0:02:04]}  Rbb8 {[%clk 0:00:29]} 16. Nc5 {[%clk 0:01:55]}  Nexc5 {[%clk 0:00:26]} 17. dxc5 {[%clk 0:01:56]}  Rc8 {[%clk 0:00:22]} 18. Qd6 {[%clk 0:01:48]}  Qxd6 {[%clk 0:00:15]} 19. cxd6 {[%clk 0:01:49]}  Rxc2 {[%clk 0:00:14]} 20. Bb5 {[%clk 0:01:48]}  Nb6 {[%clk 0:00:11]} 21. Nd4 {[%clk 0:01:48]}  Rc5 {[%clk 0:00:11]} 22. Ba6 {[%clk 0:01:42]}  Be4 {[%clk 0:00:10]} 23. Rfc1 {[%clk 0:01:35]}  Nc4 {[%clk 0:00:09]} 24. Nb5 {[%clk 0:01:23]}  Rd8 {[%clk 0:00:05]} 25. f4 {[%clk 0:01:21]}  f6 {[%clk 0:00:05]} 26. Nc7 {[%clk 0:01:16]}  Bf5 {[%clk 0:00:02]} 27. Bxc4 {[%clk 0:01:13]}  dxc4 {[%clk 0:00:02]} 28. Re1 {[%clk 0:01:08]}  fxe5 {[%clk 0:00:02]} 29. fxe5 {[%clk 0:01:08]}  Rd7 {[%clk 0:00:01]} 30. Rac1 {[%clk 0:01:07]}  c3 {[%clk 0:00:01]} 31. Re3 {[%clk 0:01:05]}  c2 {[%clk 0:00:01]} 32. Rb3 {[%clk 0:01:05]} 1-0


[Site "https://www.chess.com"]

[Event "Titled Tuesday Blitz February 07 Late 2023"]
[White "Ward, Ieuan C"]
[Black "Souza, Gustavo Horokoski De"]
[WhiteFideId "406627"]
[BlackFideId "2146584"]
[WhiteElo "2028"]
[BlackElo "1943"]
[Result "1/2-1/2"]
[Round "05"]
[TimeControl "180+2"]
[Date "2023.02.07"]
[WhiteClock "0:00:17"]
[BlackClock "0:00:09"]

1. e4 {[%clk 0:03:00]}  e6 {[%clk 0:02:57]} 2. d4 {[%clk 0:02:58]}  d5 {[%clk 0:02:56]} 3. e5 {[%clk 0:02:58]}  c5 {[%clk 0:02:55]} 4. c3 {[%clk 0:02:59]}  Nc6 {[%clk 0:02:54]} 5. Nf3 {[%clk 0:02:59]}  Nge7 {[%clk 0:02:52]} 6. dxc5 {[%clk 0:02:58]}  Ng6 {[%clk 0:02:43]} 7. b4 {[%clk 0:02:58]}  Ncxe5 {[%clk 0:02:38]} 8. Nxe5 {[%clk 0:02:43]}  Nxe5 {[%clk 0:02:39]} 9. Bf4 {[%clk 0:02:40]}  Qf6 {[%clk 0:02:32]} 10. Bg3 {[%clk 0:02:30]}  Bd7 {[%clk 0:02:26]} 11. Be2 {[%clk 0:02:29]}  a5 {[%clk 0:02:20]} 12. Nd2 {[%clk 0:02:23]}  axb4 {[%clk 0:01:50]} 13. cxb4 {[%clk 0:02:23]}  Ba4 {[%clk 0:01:50]} 14. Qb1 {[%clk 0:02:19]}  d4 {[%clk 0:01:02]} 15. O-O {[%clk 0:02:10]}  Bc6 {[%clk 0:00:56]} 16. Ne4 {[%clk 0:01:51]}  Qf5 {[%clk 0:00:41]} 17. Nd6+ {[%clk 0:01:40]}  Bxd6 {[%clk 0:00:40]} 18. Qxf5 {[%clk 0:01:41]}  exf5 {[%clk 0:00:38]} 19. cxd6 {[%clk 0:01:42]}  Ng6 {[%clk 0:00:28]} 20. f3 {[%clk 0:01:24]}  Kd7 {[%clk 0:00:27]} 21. Bc4 {[%clk 0:01:19]}  f4 {[%clk 0:00:25]} 22. Bf2 {[%clk 0:01:18]}  Ne5 {[%clk 0:00:25]} 23. Rfc1 {[%clk 0:01:00]}  Kxd6 {[%clk 0:00:20]} 24. Bxd4 {[%clk 0:00:55]}  Nxc4 {[%clk 0:00:20]} 25. Rxc4 {[%clk 0:00:53]}  Kd5 {[%clk 0:00:21]} 26. Rac1 {[%clk 0:00:48]}  Rhe8 {[%clk 0:00:18]} 27. Bxg7 {[%clk 0:00:43]}  Rxa2 {[%clk 0:00:17]} 28. Rd4+ {[%clk 0:00:41]}  Ke6 {[%clk 0:00:16]} 29. Re1+ {[%clk 0:00:39]}  Kf5 {[%clk 0:00:15]} 30. Rxe8 {[%clk 0:00:36]}  Bxe8 {[%clk 0:00:16]} 31. Bh6 {[%clk 0:00:34]}  Ra1+ {[%clk 0:00:13]} 32. Kf2 {[%clk 0:00:35]}  Ra2+ {[%clk 0:00:13]} 33. Kf1 {[%clk 0:00:35]}  Ra1+ {[%clk 0:00:12]} 34. Ke2 {[%clk 0:00:34]}  Bb5+ {[%clk 0:00:12]} 35. Kd2 {[%clk 0:00:32]}  Ra2+ {[%clk 0:00:12]} 36. Kc3 {[%clk 0:00:32]}  Bc6 {[%clk 0:00:12]} 37. Rxf4+ {[%clk 0:00:29]}  Kg6 {[%clk 0:00:12]} 38. Bf8 {[%clk 0:00:23]}  Rxg2 {[%clk 0:00:13]} 39. h4 {[%clk 0:00:15]}  h5 {[%clk 0:00:11]} 40. Bc5 {[%clk 0:00:15]}  Rg3 {[%clk 0:00:09]} 41. Kd4 {[%clk 0:00:12]}  Rxf3 {[%clk 0:00:09]} 42. Rxf3 {[%clk 0:00:12]}  Bxf3 {[%clk 0:00:09]} 43. Ke3 {[%clk 0:00:12]}  Bd1 {[%clk 0:00:09]} 44. Kf4 {[%clk 0:00:13]}  Bg4 {[%clk 0:00:08]} 45. Bf8 {[%clk 0:00:13]}  b5 {[%clk 0:00:08]} 46. Bc5 {[%clk 0:00:13]}  Be2 {[%clk 0:00:08]} 47. Bd6 {[%clk 0:00:14]}  Bc4 {[%clk 0:00:09]} 48. Bc5 {[%clk 0:00:15]}  Kf6 {[%clk 0:00:09]} 49. Bd6 {[%clk 0:00:15]}  Ke6 {[%clk 0:00:09]} 50. Bc5 {[%clk 0:00:16]}  Be2 {[%clk 0:00:10]} 51. Bf8 {[%clk 0:00:16]}  Bg4 {[%clk 0:00:10]} 52. Bc5 {[%clk 0:00:17]}  Kd5 {[%clk 0:00:11]} 53. Bf8 {[%clk 0:00:17]}  Ke6 {[%clk 0:00:11]} 54. Bc5 {[%clk 0:00:17]}  Kd5 {[%clk 0:00:09]} 1/2-1/2


[Site "https://www.chess.com"]